bitfinex/quotes_SOLUSD_20250406
["timestamp","ask_amount","ask_price","bid_price","bid_amount"]
[1743971465850,18.79181043,107.91,107.9,0.063]
[1743971466523,28.05871043,107.91,107.9,0.063]
[1743971466834,63.39587772,107.92,107.9,0.063]
[1743971467148,44.60406729,107.92,107.9,0.063]
[1743971467446,26.0,107.91,107.9,0.063]
[1743971467639,109.61181043,107.93,107.9,0.063]
[1743971468247,118.87711043,107.93,107.9,0.063]
[1743971468643,44.74622886,107.91,107.9,0.063]
[1743971468838,63.39587772,107.91,107.9,0.063]
[1743971469043,18.79181043,107.91,107.9,0.063]
[1743971469247,81.2,107.93,107.9,0.063]
[1743971469445,9.62,107.94,107.92,44.60406729]
[1743971469656,9.62,107.94,107.93,44.60406729]
[1743971471351,9.62,107.94,107.91,44.60406729]
[1743971471942,9.62,107.94,107.9,44.66706729]
[1743971472148,18.79181043,107.93,107.9,0.063]
[1743971473037,28.05701043,107.93,107.9,0.063]
[1743971474460,72.66107772,107.93,107.9,0.063]
[1743971474671,356.62,107.94,107.91,44.60406729]
[1743971474881,356.62,107.94,107.92,44.60406729]
[1743971475042,347.0,107.94,107.93,44.60406729]
[1743971476157,347.0,107.94,107.92,44.60406729]
[1743971476661,347.0,107.94,107.93,44.60406729]
[1743971476863,0.03,107.99,107.93,44.60406729]
[1743971477164,0.03,107.99,107.97,44.60406729]
[1743971477343,0.03,107.99,107.98,44.60406729]
[1743971478041,0.03,107.99,107.97,44.60406729]
[1743971478663,0.03,107.99,107.97,53.86516729]
[1743971479170,0.03,107.99,107.97,9.2611]
[1743971479469,44.74622886,107.98,107.93,9.2652]
[1743971479680,9.62,107.97,107.93,53.86926729]
[1743971480572,9.62,107.97,107.94,44.60406729]
[1743971481576,18.79181043,107.96,107.9,0.063]
[1743971481759,18.79181043,107.96,107.92,44.60406729]
[1743971483170,18.79181043,107.96,107.92,53.86976729]
[1743971483359,9.62,107.97,107.94,44.60406729]
[1743971484676,9.62,107.97,107.93,44.60406729]
[1743971485180,18.8819,107.97,107.93,44.60406729]
[1743971485379,9.62,107.97,107.93,53.86916729]
[1743971485889,18.8818,107.97,107.93,53.86916729]
[1743971486483,18.79181043,107.96,107.93,44.60406729]
[1743971486662,63.39587772,107.96,107.91,44.60406729]
[1743971487056,18.79181043,107.96,107.92,44.60406729]
[1743971487457,28.05461043,107.96,107.9,0.063]
[1743971487677,28.05461043,107.96,107.92,44.60406729]
[1743971488084,9.62,107.97,107.94,44.60406729]
[1743971488499,18.8819,107.97,107.93,44.60406729]
[1743971488674,63.48596729,107.97,107.92,44.60406729]
[1743971489589,18.8819,107.97,107.93,44.60406729]
[1743971490188,9.62,107.97,107.94,44.60406729]
[1743971490559,18.8818,107.97,107.94,44.60406729]
[1743971490780,18.8818,107.97,107.93,53.86916729]
[1743971490988,18.8818,107.97,107.93,44.60406729]
[1743971491381,9.62,107.97,107.94,44.60406729]
[1743971491588,0.03,107.99,107.97,9.2618]
[1743971491794,0.03,107.99,107.98,44.60406729]
[1743971491973,0.03,107.99,107.96,9.2624]
[1743971492170,9.2902,107.99,107.95,44.60406729]
[1743971492355,72.54391615,107.99,107.93,10.7663]
[1743971492557,18.79181043,107.98,107.94,44.60406729]
[1743971492865,9.62,107.97,107.94,44.60406729]
[1743971493558,9.62,107.97,107.93,9.2649]
[1743971493753,9.62,107.97,107.94,44.60406729]
[1743971493953,9.62,107.97,107.93,9.2649]
[1743971494192,9.62,107.97,107.94,44.60406729]
[1743971494898,18.8819,107.97,107.94,44.60406729]
[1743971495189,18.79181043,107.96,107.9,1.5644]
[1743971495400,63.39587772,107.94,107.9,0.063]
[1743971495693,63.39587772,107.91,107.9,0.063]
[1743971497331,44.60406729,107.92,107.9,0.063]
[1743971497466,26.0,107.91,107.9,0.063]
[1743971497658,90.8,107.93,107.9,0.063]
[1743971497860,100.0656,107.93,107.9,0.063]
[1743971499199,63.68020086,107.91,107.9,0.063]
[1743971499992,72.94710086,107.91,107.9,0.063]
[1743971501191,18.79181043,107.91,107.9,0.063]
[1743971501796,28.05871043,107.91,107.9,0.063]
[1743971502809,72.66277772,107.91,107.9,0.063]
[1743971503015,72.94710086,107.91,107.9,0.063]
[1743971507511,28.34303357,107.91,107.9,0.063]
[1743971508002,81.2,107.92,107.9,0.063]
[1743971508184,9.6,107.91,107.9,0.063]
[1743971508383,81.2,107.92,107.9,0.063]
[1743971508692,9.6,107.91,107.9,0.063]
[1743971510904,37.65871043,107.91,107.9,0.063]
[1743971511093,82.54710086,107.91,107.9,0.063]
[1743971511406,88.70310086,107.91,107.9,0.063]
[1743971511613,90.33200086,107.91,107.9,0.063]
[1743971511911,0.14216157,107.89,107.88,0.063]
[1743971512114,63.68020086,107.89,107.88,0.063]
[1743971512794,77.52106461,107.89,107.88,0.063]
[1743971513209,26.0,107.87,107.86,0.063]
[1743971513521,73.28020086,107.87,107.86,0.063]
[1743971513885,18.79181043,107.86,107.85,0.063]
[1743971514193,18.79181043,107.86,107.84,0.063]
[1743971514194,6.65502314,107.85,107.84,0.063]
[1743971514508,70.05090086,107.85,107.84,0.063]
[1743971514897,79.32300086,107.85,107.84,0.063]
[1743971515300,0.42648471,107.83,107.82,0.063]
[1743971515506,73.28020086,107.83,107.82,0.063]
[1743971516798,82.55400086,107.83,107.82,0.0001]
[1743971517342,37.94993357,107.83,107.82,0.0001]
[1743971517627,82.55400086,107.83,107.82,0.0001]
[1743971518514,82.55400086,107.83,107.78,0.063]
[1743971518515,45.07613357,107.79,107.78,0.063]
[1743971518700,99.28020086,107.79,107.78,0.063]
[1743971518900,108.55740086,107.79,107.78,0.063]
[1743971520831,115.07830086,107.79,107.78,0.063]
[1743971521191,39.07613357,107.78,107.77,0.063]
[1743971521411,26.0,107.75,107.74,0.03]
[1743971521734,446.60020086,107.75,107.74,0.03]
[1743971522725,401.99613357,107.75,107.74,0.03]
[1743971523026,356.92,107.75,107.74,0.03]
[1743971523388,384.99251043,107.75,107.74,0.03]
[1743971523647,375.71181043,107.75,107.74,0.03]
[1743971524857,356.92,107.75,107.74,0.03]
[1743971525152,366.2007,107.75,107.74,0.03]
[1743971525448,429.88090086,107.75,107.74,0.03]
[1743971527739,375.71181043,107.75,107.74,0.03]
[1743971527944,347.32,107.75,107.74,0.03]
[1743971528127,356.92,107.75,107.74,0.03]
[1743971528729,375.71181043,107.75,107.74,0.03]
[1743971528925,356.92,107.75,107.74,0.03]
[1743971529146,356.92,107.75,107.74,44.63406729]
[1743971529825,9.62,107.78,107.74,89.23813458]
[1743971530027,9.62,107.78,107.77,44.60406729]
[1743971530523,9.62,107.8,107.77,44.60406729]
[1743971530723,9.62,107.8,107.79,44.60406729]
[1743971532951,9.62,107.8,107.79,53.88126729]
[1743971533263,9.62,107.8,107.79,44.60406729]
[1743971534574,9.62,107.8,107.79,53.88126729]
[1743971534745,347.54,107.81,107.79,53.88126729]
[1743971534944,347.54,107.81,107.8,44.60406729]
[1743971535758,347.54,107.81,107.76,69.33986729]
[1743971536058,356.8157,107.81,107.79,44.60406729]
[1743971536357,347.54,107.81,107.8,44.60406729]
[1743971538136,347.54,107.81,107.8,53.88046729]
[1743971538538,0.063,107.84,107.8,53.88046729]
[1743971538741,9.663,107.84,107.83,44.60406729]
[1743971539057,0.063,107.84,107.83,44.60406729]
[1743971539237,0.063,107.84,107.81,6.4151]
[1743971539560,0.063,107.84,107.83,44.60406729]
[1743971540858,0.063,107.84,107.81,9.2751]
[1743971541058,0.063,107.84,107.8,9.2764]
[1743971541256,0.063,107.84,107.83,44.60406729]
[1743971541646,0.063,107.84,107.8,9.2764]
[1743971541847,0.063,107.84,107.83,44.60406729]
[1743971542244,0.063,107.84,107.83,53.87786729]
[1743971542758,0.063,107.84,107.83,44.60406729]
[1743971542940,0.063,107.84,107.83,53.87786729]
[1743971543138,0.063,107.84,107.83,44.60406729]
[1743971543342,0.063,107.84,107.83,53.87786729]
[1743971544466,0.063,107.84,107.83,44.60406729]
[1743971544956,0.063,107.84,107.83,53.87786729]
[1743971545165,0.063,107.84,107.83,54.16219043]
[1743971545662,0.063,107.86,107.85,1.84222314]
[1743971545859,9.6,107.89,107.85,46.44629043]
[1743971546068,9.6,107.89,107.88,44.60406729]
[1743971547060,18.79181043,107.88,107.86,44.60406729]
[1743971547247,18.79181043,107.88,107.85,44.60406729]
[1743971547654,18.79181043,107.88,107.82,1.5579]
[1743971547854,18.79181043,107.88,107.84,44.60406729]
[1743971548053,18.79181043,107.88,107.85,44.60406729]
[1743971548251,18.8687,107.89,107.87,44.60406729]
[1743971548449,18.8687,107.89,107.84,9.2729]
[1743971548649,18.8687,107.89,107.86,44.60406729]
[1743971549547,18.8687,107.89,107.83,9.2736]
[1743971549748,18.8687,107.89,107.86,44.60406729]
[1743971550165,9.2704,107.87,107.82,46.16196729]
[1743971550365,9.2704,107.87,107.84,44.60406729]
[1743971550978,18.79181043,107.86,107.83,44.60406729]
[1743971551167,9.6,107.85,107.83,44.60406729]
[1743971551345,9.6,107.85,107.84,44.60406729]
[1743971551876,18.79181043,107.84,107.79,1.5863]
[1743971552054,18.79181043,107.84,107.78,9.2776]
[1743971552264,9.2738,107.83,107.79,44.60406729]
[1743971552584,9.2738,107.83,107.76,46.19036729]
[1743971552585,44.74622886,107.82,107.76,1.5863]
[1743971552768,0.42648471,107.8,107.74,0.03]
[1743971553073,0.42648471,107.8,107.76,44.60406729]
[1743971553249,26.0,107.79,107.78,44.60406729]
[1743971553457,0.14216157,107.8,107.74,9.3115]
[1743971553661,0.14216157,107.8,107.78,44.60406729]
[1743971553864,90.8,107.81,107.74,27.96114886]
[1743971554058,0.42648471,107.8,107.76,44.60406729]
[1743971554267,0.14216157,107.8,107.74,9.311]
[1743971554475,0.14216157,107.8,107.77,44.60406729]
[1743971554781,15.83398471,107.8,107.74,0.03]
[1743971554987,0.14216157,107.78,107.76,44.60406729]
[1743971555148,9.6,107.77,107.74,9.3114]
[1743971555559,9.6,107.77,107.76,44.60406729]
[1743971557386,9.6,107.77,107.76,53.88386729]
[1743971557566,347.3,107.79,107.76,98.48793458]
[1743971557761,347.3,107.79,107.78,44.60406729]
[1743971559355,347.3,107.79,107.78,53.88216729]
[1743971560681,363.25076157,107.85,107.78,53.88216729]
[1743971560858,9.6,107.84,107.83,44.60406729]
[1743971561060,347.4,107.85,107.83,44.60406729]
[1743971561270,0.063,107.9,107.84,44.60406729]
[1743971561467,0.063,107.9,107.89,44.60406729]
[1743971561671,30.063,107.9,107.87,44.60406729]
[1743971561862,0.063,107.9,107.89,44.60406729]
[1743971563096,9.80516157,107.9,107.88,44.60406729]
[1743971563598,9.80516157,107.9,107.87,44.60406729]
[1743971564877,19.07336157,107.9,107.87,44.60406729]
[1743971565059,18.9309,107.9,107.88,44.60406729]
[1743971566312,18.9309,107.9,107.89,44.60406729]
[1743971567495,18.9309,107.9,107.86,9.2712]
[1743971567696,18.9309,107.9,107.89,44.60406729]
[1743971568867,0.063,107.9,107.89,44.60406729]
[1743971569771,0.063,107.9,107.85,10.8888]
[1743971569961,26.063,107.9,107.88,44.60406729]
[1743971570180,26.063,107.9,107.87,44.60406729]
[1743971570382,26.0,107.89,107.83,9.2735]
[1743971570581,35.6,107.88,107.87,44.60406729]
[1743971570781,35.6,107.88,107.83,9.2735]
[1743971570978,35.6,107.88,107.87,44.60406729]
[1743971571385,44.8695,107.88,107.87,44.60406729]
[1743971571870,9.6,107.88,107.87,44.60406729]
[1743971572090,0.063,107.9,107.87,98.47853458]
[1743971572284,0.063,107.9,107.89,44.60406729]
[1743971572972,0.14216157,107.88,107.83,9.2738]
[1743971573298,9.6,107.87,107.85,44.60406729]
[1743971573497,0.14216157,107.86,107.79,1.5891]
[1743971573708,0.14216157,107.86,107.84,44.60406729]
[1743971573875,0.14216157,107.86,107.85,44.60406729]
[1743971574076,0.14216157,107.86,107.84,44.60406729]
[1743971574291,0.14216157,107.86,107.79,10.8659]
[1743971574589,0.14216157,107.86,107.83,44.60406729]
[1743971574977,0.42648471,107.86,107.82,44.60406729]
[1743971575290,9.2721,107.85,107.82,44.60406729]
[1743971576310,0.14216157,107.84,107.82,44.60406729]
[1743971576611,9.6,107.83,107.81,44.60406729]
[1743971576792,9.6,107.83,107.79,10.8659]
[1743971577000,9.6,107.83,107.81,44.60406729]
[1743971577368,9.6,107.83,107.82,44.60406729]
[1743971577669,9.6,107.85,107.82,44.60406729]
[1743971577865,9.6,107.85,107.84,44.60406729]
[1743971578065,9.6,107.85,107.83,44.60406729]
[1743971578485,9.6,107.85,107.82,44.60406729]
[1743971578684,0.14216157,107.83,107.8,44.60406729]
[1743971578888,9.6,107.85,107.81,44.60406729]
[1743971579097,19.07613357,107.84,107.8,44.60406729]
[1743971579286,9.2738,107.83,107.8,44.60406729]
[1743971580084,9.2738,107.83,107.79,0.03]
[1743971580295,0.14216157,107.82,107.79,0.03]
[1743971580492,9.6,107.81,107.79,0.03]
[1743971580686,9.6,107.81,107.8,44.60406729]
[1743971580883,9.6,107.81,107.79,0.03]
[1743971581706,9.2764,107.8,107.79,0.03]
[1743971581883,9.6,107.81,107.79,0.03]
[1743971581884,9.6,107.81,107.79,44.63406729]
[1743971582084,9.6,107.81,107.8,44.60406729]
[1743971582289,9.6,107.81,107.79,44.63406729]
[1743971582501,18.8755,107.81,107.79,0.03]
[1743971583006,0.14216157,107.8,107.79,0.03]
[1743971583412,18.8755,107.81,107.79,0.03]
[1743971584080,0.14216157,107.8,107.79,0.03]
[1743971584283,9.6,107.81,107.79,44.63406729]
[1743971584616,9.6,107.81,107.8,44.60406729]
[1743971585288,0.14216157,107.8,107.79,0.03]
[1743971585682,19.07613357,107.8,107.79,0.03]
[1743971586010,79.34210086,107.8,107.79,0.03]
[1743971586212,18.64964886,107.76,107.75,0.03]
[1743971586422,420.64020086,107.76,107.75,0.0001]
[1743971586702,39.07613357,107.75,107.74,0.0101]
[1743971586911,19.07613357,107.75,107.74,0.0101]
[1743971587212,63.68020086,107.75,107.74,0.0101]
[1743971587700,26.14216157,107.71,107.7,0.03]
[1743971587894,63.96023357,107.71,107.7,0.03]
[1743971588721,128.56430086,107.71,107.7,0.03]
[1743971589024,83.96023357,107.71,107.7,0.03]
[1743971589201,63.96023357,107.71,107.7,0.03]
[1743971589375,108.56430086,107.71,107.7,0.03]
[1743971589928,58.69505746,107.75,107.7,0.03]
[1743971590205,44.933972,107.71,107.7,0.03]
[1743971590575,26.14216157,107.71,107.7,0.03]
[1743971590977,26.0,107.71,107.7,44.63406729]
[1743971591191,9.6,107.74,107.7,44.63406729]
[1743971591391,9.6,107.74,107.72,44.60406729]
[1743971591695,0.14216157,107.73,107.71,44.60406729]
[1743971592218,9.42466157,107.73,107.71,44.60406729]
[1743971592396,0.14216157,107.73,107.72,44.60406729]
[1743971592598,357.0,107.76,107.72,44.60406729]
[1743971592921,357.14216157,107.76,107.75,44.60406729]
[1743971593113,357.0,107.76,107.75,44.60406729]
[1743971593312,347.36,107.76,107.75,44.60406729]
[1743971593515,50.23676765,107.79,107.75,89.20813458]
[1743971593722,40.59676765,107.79,107.78,44.60406729]
[1743971594136,40.59676765,107.79,107.78,53.88216729]
[1743971594293,347.72216157,107.82,107.78,53.88216729]
[1743971594495,347.72216157,107.82,107.8,44.60406729]
[1743971594796,356.99686157,107.82,107.76,44.60406729]
[1743971594991,356.99686157,107.82,107.79,44.60406729]
[1743971595193,347.72216157,107.82,107.8,44.60406729]
[1743971595535,347.72216157,107.82,107.8,67.13637871]
[1743971595693,356.99686157,107.82,107.8,67.13637871]
[1743971595894,347.72216157,107.82,107.8,67.13637871]
[1743971596129,356.99686157,107.82,107.8,67.13637871]
[1743971596736,347.58,107.82,107.81,67.13637871]
[1743971597094,356.8547,107.82,107.8,67.13637871]
[1743971597448,0.14216157,107.81,107.78,67.13637871]
[1743971597593,0.14216157,107.81,107.79,67.13637871]
[1743971597797,347.58,107.82,107.8,67.13637871]
[1743971598132,347.58,107.82,107.81,76.41187871]
[1743971598829,9.66,107.86,107.81,76.41187871]
[1743971599159,9.66,107.86,107.84,67.13637871]
[1743971599463,18.9315,107.86,107.8,9.276]
[1743971599628,0.14216157,107.85,107.82,67.13637871]
[1743971599834,26.0,107.81,107.77,1.5429]
[1743971600151,26.0,107.81,107.8,67.13637871]
[1743971600339,26.0,107.81,107.79,67.13637871]
[1743971600739,26.0,107.81,107.77,10.8216]
[1743971600957,35.2756,107.81,107.78,67.13637871]
[1743971601124,35.2756,107.81,107.79,67.13637871]
[1743971601851,35.2756,107.81,107.77,9.2789]
[1743971602042,35.2756,107.81,107.78,67.13637871]
[1743971602242,35.2756,107.81,107.79,67.13637871]
[1743971602640,26.0,107.77,107.71,23.2098]
[1743971602857,0.14216157,107.76,107.71,9.2841]
[1743971603059,0.14216157,107.76,107.72,67.13637871]
[1743971603572,19.07613357,107.76,107.72,67.13637871]
[1743971603858,0.14216157,107.76,107.73,67.13637871]
[1743971604052,0.14216157,107.76,107.74,67.13637871]
[1743971604571,35.64,107.77,107.74,67.13637871]
[1743971605239,44.9191,107.77,107.73,67.13637871]
[1743971605458,35.64,107.77,107.74,67.13637871]
[1743971605775,35.64,107.77,107.76,67.13637871]
[1743971607055,44.9191,107.77,107.75,67.13637871]
[1743971607274,35.64,107.77,107.73,9.282]
[1743971607481,35.64,107.77,107.75,67.13637871]
[1743971607972,44.9193,107.77,107.72,9.2829]
[1743971608278,44.9193,107.77,107.7,0.03]
[1743971608279,67.27854028,107.76,107.7,0.03]
[1743971608449,67.27854028,107.76,107.71,67.13637871]
[1743971608646,67.27854028,107.76,107.7,9.315]
[1743971608858,19.07613357,107.76,107.71,67.13637871]
[1743971609062,19.07613357,107.76,107.72,67.13637871]
[1743971609578,9.42226157,107.76,107.72,67.13637871]
[1743971610142,28.07191043,107.76,107.72,67.13637871]
[1743971611267,28.07191043,107.76,107.7,0.03]
[1743971611473,28.07191043,107.76,107.72,67.13637871]
[1743971612443,44.9194,107.77,107.74,67.13637871]
[1743971613659,35.64,107.77,107.74,67.13637871]
[1743971613866,44.919,107.77,107.74,67.13637871]
[1743971614068,0.14216157,107.76,107.7,68.72017871]
[1743971614272,86.21251228,107.76,107.7,1.5838]
[1743971614577,86.21251228,107.76,107.71,67.13637871]
[1743971615084,19.07613357,107.76,107.72,67.13637871]
[1743971615460,19.07613357,107.76,107.7,10.8687]
[1743971615656,9.2807,107.75,107.71,67.13637871]
[1743971615863,9.42236157,107.76,107.73,67.13637871]
[1743971616184,9.42236157,107.76,107.72,67.13637871]
[1743971617355,9.42236157,107.76,107.72,44.81763763]
[1743971618088,9.42236157,107.76,107.73,44.81763763]
[1743971618387,81.2,107.78,107.75,44.81763763]
[1743971618693,81.2,107.78,107.76,44.81763763]
[1743971618864,356.7378,107.79,107.76,44.81763763]
[1743971619061,347.46,107.79,107.78,44.81763763]
[1743971620260,356.7372,107.79,107.77,44.81763763]
[1743971620464,356.7372,107.79,107.75,44.81763763]
[1743971621083,19.07613357,107.78,107.74,44.81763763]
[1743971621269,18.879,107.77,107.74,44.81763763]
[1743971621474,18.879,107.77,107.71,9.2838]
[1743971621681,0.14216157,107.76,107.7,10.8684]
[1743971621894,0.14216157,107.76,107.73,44.81763763]
[1743971622197,42.0765,107.77,107.7,10.8684]
[1743971622198,18.879,107.77,107.74,44.81763763]
[1743971622560,9.6,107.77,107.75,44.81763763]
[1743971623874,9.6,107.77,107.76,44.81763763]
[1743971625065,18.8793,107.77,107.72,9.2833]
[1743971625396,18.8793,107.77,107.74,44.81763763]
[1743971625599,18.8793,107.77,107.75,44.81763763]
[1743971625769,18.8793,107.77,107.72,9.2833]
[1743971626159,18.8793,107.77,107.75,44.81763763]
[1743971626489,18.8793,107.77,107.71,9.2837]
[1743971626994,18.8793,107.77,107.73,44.81763763]
[1743971627199,19.07613357,107.76,107.72,44.81763763]
[1743971627531,0.14216157,107.74,107.7,0.03]
[1743971627668,0.14216157,107.72,107.7,0.03]
[1743971628002,19.07613357,107.72,107.7,0.03]
[1743971628205,26.14216157,107.71,107.7,0.03]
[1743971628372,171.0937712,107.71,107.7,0.03]
[1743971628576,89.8937712,107.71,107.7,0.03]
[1743971628805,26.14216157,107.68,107.67,0.03]
[1743971629003,453.8645712,107.68,107.67,0.03]
[1743971629513,19.07613357,107.67,107.64,0.03]
[1743971629892,19.07613357,107.65,107.64,0.03]
[1743971630302,9.71578471,107.65,107.64,0.03]
[1743971630514,93.1830712,107.65,107.64,0.03]
[1743971630813,19.07613357,107.64,107.63,0.0001]
[1743971631021,29.25613357,107.64,107.63,0.0001]
[1743971631313,96.66354769,107.64,107.63,0.0001]
[1743971632289,38.54633357,107.64,107.63,0.0001]
[1743971633012,105.95374769,107.64,107.63,0.0001]
[1743971633217,173.36116181,107.64,107.63,0.0001]
[1743971633397,19.07613357,107.62,107.61,0.03]
[1743971633594,86.48354769,107.62,107.61,0.03]
[1743971633923,0.14216157,107.57,107.54,67.40741412]
[1743971634098,10.78,107.57,107.52,1.6506]
[1743971634415,358.66,107.6,107.52,53.136372]
[1743971634590,347.8,107.6,107.53,0.14216157]
[1743971634798,347.8,107.6,107.59,67.40741412]
[1743971634997,0.14216157,107.66,107.59,67.40741412]
[1743971635206,367.9879,107.67,107.59,0.14216157]
[1743971635207,358.7,107.67,107.59,0.14216157]
[1743971635395,347.8,107.67,107.66,67.40741412]
[1743971635601,347.8,107.67,107.6,20.468972]
[1743971635800,11.06,107.7,107.66,67.40741412]
[1743971636000,11.06,107.7,107.68,67.40741412]
[1743971636197,15.4827,107.72,107.67,67.40741412]
[1743971636407,358.88,107.73,107.69,67.40741412]
[1743971636625,368.1625,107.73,107.66,9.288]
[1743971636815,368.1625,107.73,107.69,67.40741412]
[1743971637026,26.0,107.7,107.64,86.34138612]
[1743971637212,26.0,107.7,107.67,67.40741412]
[1743971637408,449.3625,107.73,107.68,67.40741412]
[1743971637609,358.88,107.73,107.65,0.14216157]
[1743971637817,347.8,107.73,107.7,67.40741412]
[1743971638209,0.14216157,107.72,107.65,18.933972]
[1743971638410,40.61943054,107.74,107.67,18.933972]
[1743971638618,49.90103054,107.74,107.67,18.933972]
[1743971638929,40.61943054,107.74,107.67,18.933972]
[1743971639105,40.61943054,107.74,107.72,67.40741412]
[1743971639706,27.92874886,107.77,107.73,67.40741412]
[1743971639944,0.14216157,107.77,107.74,67.40741412]
[1743971640121,371.0514,107.8,107.76,67.40741412]
[1743971640122,347.86,107.8,107.76,67.40741412]
[1743971640454,347.86,107.8,107.75,9.2802]
[1743971640607,347.86,107.8,107.78,67.40741412]
[1743971641216,347.86,107.8,107.79,67.40741412]
[1743971641636,0.20516157,107.82,107.79,67.40741412]
[1743971641833,9.47996157,107.82,107.75,9.2802]
[1743971642017,28.12961043,107.82,107.78,67.40741412]
[1743971642511,0.14216157,107.8,107.72,6.3468]
[1743971642829,0.14216157,107.78,107.71,19.433972]
[1743971643015,11.16,107.79,107.76,67.40741412]
[1743971643215,81.2,107.81,107.77,67.40741412]
[1743971643530,11.203,107.82,107.79,67.40741412]
[1743971643934,20.4779,107.82,107.74,0.14216157]
[1743971644111,19.07613357,107.79,107.72,9.2831]
[1743971644311,19.07613357,107.79,107.74,67.40741412]
[1743971644540,9.42006157,107.79,107.75,67.40741412]
[1743971645241,0.14216157,107.77,107.71,9.2838]
[1743971645410,11.32216157,107.77,107.73,67.40741412]
[1743971645828,0.14216157,107.75,107.69,9.2859]
[1743971646005,0.14216157,107.75,107.72,67.40741412]
[1743971646410,9.2816,107.74,107.7,67.40741412]
[1743971646639,0.14216157,107.73,107.66,9.2885]
[1743971646823,0.14216157,107.73,107.69,67.40741412]
[1743971647021,11.22,107.72,107.66,9.2885]
[1743971647245,11.22,107.72,107.69,67.40741412]
[1743971647412,11.22,107.72,107.65,32.5124]
[1743971647413,11.22,107.72,107.66,18.933972]
[1743971647608,11.22,107.72,107.69,67.40741412]
[1743971647916,78.62741412,107.72,107.65,9.289]
[1743971648116,11.22,107.72,107.68,67.40741412]
[1743971648323,11.22,107.72,107.65,9.289]
[1743971648619,11.22,107.72,107.69,67.40741412]
[1743971648820,11.22,107.72,107.65,9.57362314]
[1743971649034,11.22,107.72,107.7,67.40741412]
[1743971649459,11.22,107.72,107.71,67.40741412]
[1743971649659,20.5408,107.75,107.71,67.40741412]
[1743971649939,20.541,107.75,107.68,0.14216157]
[1743971650139,20.541,107.75,107.71,67.40741412]
[1743971650438,0.14216157,107.74,107.67,0.14216157]
[1743971650638,9.42456157,107.74,107.7,67.40741412]
[1743971651027,76.83197569,107.74,107.69,67.40741412]
[1743971651538,0.14216157,107.72,107.69,67.40741412]
[1743971651735,0.14216157,107.72,107.68,67.40741412]
[1743971651922,11.26,107.75,107.7,67.40741412]
[1743971652120,11.26,107.75,107.72,67.40741412]
[1743971652554,92.48,107.76,107.73,67.40741412]
[1743971652713,11.28,107.76,107.73,67.40741412]
[1743971653211,11.28,107.76,107.73,44.81265309]
[1743971653212,20.5599,107.76,107.73,44.81265309]
[1743971653919,347.64,107.77,107.74,44.81265309]
[1743971654440,356.919,107.77,107.71,9.284]
[1743971654665,401.73165309,107.77,107.72,44.81265309]
[1743971654946,0.14216157,107.76,107.72,44.81265309]
[1743971655153,0.14216157,107.76,107.73,44.81265309]
[1743971655331,0.14216157,107.76,107.73,67.22118769]
[1743971655533,9.42236157,107.76,107.71,9.284]
[1743971655839,76.64354926,107.76,107.71,67.22118769]
[1743971656349,0.14216157,107.74,107.67,9.2876]
[1743971656653,11.28,107.73,107.69,67.22118769]
[1743971657650,9.2833,107.72,107.68,67.22118769]
[1743971657957,20.5628,107.73,107.69,67.22118769]
[1743971658127,11.28,107.73,107.7,67.22118769]
[1743971658624,11.28,107.73,107.71,67.22118769]
[1743971658830,11.28,107.73,107.67,32.5066]
[1743971659037,11.28,107.73,107.7,67.22118769]
[1743971659253,20.5626,107.73,107.67,32.5066]
[1743971659465,11.28,107.73,107.69,67.22118769]
[1743971659637,11.28,107.73,107.69,76.50678769]
[1743971659959,11.28,107.73,107.69,9.2856]
[1743971660166,87.78368769,107.73,107.67,9.2876]
[1743971660336,87.78368769,107.73,107.68,67.22118769]
[1743971660534,20.5625,107.73,107.69,67.22118769]
[1743971660939,9.2825,107.73,107.69,67.22118769]